Cogmind - Beta 14 @@@ ROGUE MODE // 2024.08.11 @ 09:05:34 Player: Zaros426 Result: Destroyed by G-47 Trooper with Particle Gun Performance ------------- Evolutions (2) 1000 Regions Visited (6) 1200 Robots Destroyed (109) 545 Value Destroyed (4157) 4157 Prototype IDs (8) 160 Alien Tech Used (0) 0 Bonus (1648) 1648 TOTAL SCORE: 8710 Bonus ------- High Alert Combat Kills 495 Follower Combat Kills 176 Entered Garrisons 200 Used RIF Installer 1000 Friendly Fire -223 Cogmind --------- Core Integrity 0/550 Matter 1/300 Energy 465/465 System Corruption 1% Temperature Cool (9) Movement Treading (320) Ox2 Location -8/Materials Parts ------- > --- POWER (2) -------- Deuterium Engine Reinforced Deuterium Engine > --- PROPULSION (3) --- Light Treads Improved Medium Treads > --- UTILITY (4) ------ Huge Storage Unit Improved Transmission Jammer Heavy Armor Plating > --- WEAPON (2) ------- Power Maul > --- INVENTORY (25) --- Improved Medium Treads Medium Armored Exoskeleton Improved Heat Sink Advanced Heat Sink Structural Scanner Experimental Sensor Array Heavy Armor Plating Medium Reflective Plating Relay Coupler [Sentry] (19) Relay Coupler [Sentry] (21) Relay Coupler [Sentry] (21) Mini Drone Bay (3/3) Advanced Plasma Cannon Advanced Assault Cannon Advanced Assault Cannon Precision Grenade Launcher Precision Grenade Launcher Smartbomb Launcher Power Maul Power Maul Peak State ------------ > --- POWER ------------ Improved Ion Engine Reinforced Deuterium Engine > --- PROPULSION ------- Armored Treads Improved Medium Treads Improved Medium Treads > --- UTILITY ---------- Advanced Heat Sink Huge Storage Unit Medium Reflective Plating Advanced System Restoration Module > --- WEAPON ----------- Dirty Datajack Power Maul > --- INVENTORY -------- Light Treads Medium Armored Exoskeleton Structural Scanner Experimental Sensor Array Improved Transmission Jammer Improved Shock Absorption System Relay Coupler [Grunt] Relay Coupler [Sentry] Relay Coupler [Sentry] Advanced System Restoration Module Mini Drone Bay Advanced Plasma Cannon Advanced Assault Cannon Advanced Assault Cannon Precision Grenade Launcher Precision Grenade Launcher Precision Grenade Launcher Smartbomb Launcher Datajack Power Maul Power Maul [Rating: 56] Favorites ----------- Power Light Nuclear Core Engine Ion Engine Power Core Light Nuclear Core Propulsion Light Treads Treads Light Treads Utility High-capacity Storage Unit Device Structural Scanner Storage High-capacity Storage Unit Hackware Relay Coupler [Grunt] Protection Makeshift Light Armor Plating Weapon Power Maul Energy Gun EM Pulse Gun Energy Cannon Ion Cannon Ballistic Gun Assault Rifle Ballistic Cannon Flak Cannon Launcher Grenade Launcher Impact Weapon Power Maul Special Melee Weapon Dirty Datajack Build | -11 -10 -10 -10 -8 -8 -8 ------- Run | Yrd Mat Min Sub Mat Gar Mat Slots Evolved 4 | . . . . 4 . . Power 1 | . . . . 1 . . Propulsion 1 | . . . . 1 . . Utility 2 | . . . . 2 . . Weapon . | . . . . . . . Parts Attached 95 | 7 6 4 18 27 22 11 Power 11 | 1 1 1 1 2 4 1 Engine 8 | 1 1 1 . . 4 1 Core 3 | . . . 1 2 . . Reactor . | . . . . . . . Propulsion 20 | 2 1 1 3 8 4 1 Treads 20 | 2 1 1 3 8 4 1 Leg . | . . . . . . . Wheel . | . . . . . . . Hover . | . . . . . . . Flight . | . . . . . . . Utility 27 | 2 3 . 4 7 7 4 Device 14 | 1 . . 2 5 4 2 Storage 5 | 1 3 . . . 1 . Processor . | . . . . . . . Hackware 1 | . . . . . . 1 Protection 7 | . . . 2 2 2 1 Artifact . | . . . . . . . Weapon 37 | 2 1 2 10 10 7 5 Energy Gun 3 | 1 . 1 1 . . . Energy Cannon 4 | . . . 1 2 1 . Ballistic Gun 2 | 1 . 1 . . . . Ballistic Cannon 7 | . . . 3 3 1 . Launcher 12 | . 1 . 4 4 . 3 Special Weapon . | . . . . . . . Impact Weapon 5 | . . . . 1 3 1 Slashing Weapon . | . . . . . . . Piercing Weapon . | . . . . . . . Special Melee Weapon 4 | . . . 1 . 2 1 Unidentified Prototypes 1 | . . . . 1 . . Corrupted Parts 3 | . . . . . 3 . System Corruption 21 | . . . . . 21 . Parts Lost 25 | . 1 1 6 10 4 3 Power 4 | . . . 1 1 2 . Propulsion 7 | . . . 2 4 1 . Utility 6 | . . . 1 4 . 1 Weapon 8 | . 1 1 2 1 1 2 Highest Loss Streak 5 | . 1 1 3 5 2 1 To Critical Strikes 1 | . . . 1 . . . Average Slot Usage (%) 96 | . 100 99 98 91 92 84 Engine 8 | . 14 13 . . 15 18 Core 5 | . . . 12 12 . . Treads 26 | . 28 28 27 26 24 26 Device 12 | . 14 14 10 14 15 9 Storage 12 | . 14 14 14 9 9 9 Protection 4 | . . . 3 9 9 9 Energy Gun 2 | . 4 9 2 . . . Energy Cannon 1 | . . . 2 1 1 . Ballistic Gun 4 | . 14 14 . . . . Ballistic Cannon 4 | . . . 9 9 1 . Launcher 6 | . 9 4 12 3 . 5 Impact Weapon 2 | . . . . 3 8 3 Special Melee Weapon 1 | . . . . . 5 . Peak Build Rating 56 | 7 9 17 22 34 56 55 Average Rating 23 | 5 8 11 16 30 40 50 On Entrance 19 | . 7 9 17 22 34 50 Naked Turns . | . . . . . . . Heaviest Build 133 | 15 51 55 63 69 123 133 Greatest Support 80 | 40 40 40 40 60 80 80 Greatest Overweight (x) 2 | 2 1 1 1 2 1 2 Average Overweight (x) . | . . 1 1 . . 1 Largest Inventory Capacity 25 | 8 20 20 20 20 25 25 Average Capacity 20 | 6 15 20 20 20 22 25 Most Carried 25 | . 18 20 20 20 24 25 Average Carried 18 | . 11 19 19 17 20 23 Final Capacity 25 | 8 20 20 20 20 25 25 Final Carried 24 | . 18 20 20 20 23 24 Class Distribution -------------------- 71% | Mutant 28% | Scavenger-Mutant Dominant Class ---------------- Mutant | -10/Materials Mutant | -10/Mines Mutant | -10/Subcaves Scavenger-Mutant | -8/Materials Scavenger-Mutant | -8/Garrison Mutant | -8/Materials Resources | -11 -10 -10 -10 -8 -8 -8 ----------- Run | Yrd Mat Min Sub Mat Gar Mat Matter Collected 2557 | 213 271 113 831 376 608 145 Remotely . | . . . . . . . Salvage Created 2897 | 14 297 122 541 532 715 676 Parts 175 | 4 34 14 33 25 23 42 Haulers Intercepted 4 | . 1 . . 2 . 1 Recyclers Shooed 1 | . . . . . . 1 Parts Field Recycled . | . . . . . . . Retrieved Matter . | . . . . . . . Parts Self-Destructed 7 | . . . 7 . . . Prevented . | . . . . . . . Kills | -11 -10 -10 -10 -8 -8 -8 ------- Run | Yrd Mat Min Sub Mat Gar Mat Combat Hostiles Destroyed 78 | . 9 4 20 13 18 14 Melee 5 | . . . . 2 2 1 Guns 11 | . 7 1 3 . . . Cannons 25 | . . . 6 9 10 . AOE 30 | . 2 3 11 1 1 12 Classes Destroyed 17 | 1 6 1 3 1 1 4 Worker 4 | . . 1 . . . 3 Builder 5 | . 1 1 . . . 3 Tunneler 2 | 1 . . . 1 . . Hauler 4 | . 1 . . 2 . 1 Recycler 3 | . . . . . . 3 Mechanic 3 | . . . . . . 3 Operator 2 | . 2 . . . . . Watcher 6 | . 3 . . 3 . . Swarmer 22 | . 6 2 4 . 8 2 Grunt 32 | . 3 2 2 10 7 8 Brawler 2 | . . . . . . 2 Duelist 1 | . . . . . . 1 Sentry 6 | . . . 1 2 2 1 Hunter 2 | . . . . 1 1 . Behemoth 1 | . . . . . 1 . Subdweller 13 | . . . 13 . . . Zionite 1 | . . . 1 . . . Best Kill Streak 6 | 1 6 2 3 5 5 6 Combat Bots Only 5 | . 5 2 3 4 5 4 Max Kills in Single Turn 3 | 1 2 2 2 1 1 3 Gunslinging . | . . . . . . . Exploded 3 | . 1 2 2 1 1 3 Melee 1 | . . . . 1 1 1 Uniques/NPCs Destroyed . | . . . . . . . Combat | -11 -10 -10 -10 -8 -8 -8 -------- Run | Yrd Mat Min Sub Mat Gar Mat Hostile Shots Fired 433 | . 43 14 74 116 136 50 Missed 123 | . 12 2 32 24 39 14 Damage Taken 5173 | . 297 137 1089 1701 1281 668 Core 796 | . 33 6 196 229 272 60 Absorbed by Shields 92 | . . . . 64 28 . Ignored by Resistances 159 | . . . 17 20 34 88 Core Remaining (%) 53 | 100 . . 6 . . . Volleys Fired 209 | 3 43 6 76 35 24 22 Largest 2 | 2 2 2 2 2 1 1 Hottest 124 | 60 60 65 84 124 98 46 Shots Fired 273 | 6 62 10 95 54 24 22 Gun 98 | 6 57 7 28 . . . Cannon 102 | . . . 33 45 24 . Launcher 73 | . 5 3 34 9 . 22 Special . | . . . . . . . Kinetic 163 | 3 43 6 52 36 23 . Thermal 25 | . . . 8 16 1 . Explosive 45 | . 5 3 13 2 . 22 Electromagnetic 40 | 3 14 1 22 . . . Robot Hit Streak 15 | 3 5 3 15 8 7 13 Robot Miss Streak 5 | 1 2 3 5 4 4 4 Penetration Max . | . . . . . . . Secondary Targets 3 | . 2 . 1 . . . Max Gunslinging Chain 1 | . 1 . 1 . . . Shots Hit Robots 214 | 4 32 4 54 42 57 21 Core Hits 191 | 1 22 12 47 35 37 37 Critical Kills 2 | . 1 . . 1 . . Critical Parts Destroyed 6 | . 1 . . 1 3 1 Critical Strikes 11 | . 3 . 1 3 3 1 Meltdown 1 | . . . . 1 . . Destroy 3 | . 2 . 1 . . . Blast 1 | . . . . 1 . . Corrupt 1 | . 1 . . . . . Smash 5 | . . . . 1 3 1 Melee Attacks 88 | . . . . 8 69 11 Impact 66 | . . . . 8 49 9 Slashing . | . . . . . . . Piercing 20 | . . . . . 20 . Sneak Attacks 10 | . . . . 2 8 . Combat Hostiles 8 | . . . . . 8 . Follow-up Attacks . | . . . . . . . Damage Inflicted 10261 | 47 928 222 2444 2327 1327 2966 Guns 860 | 47 446 52 315 . . . Cannons 1600 | . . . 448 741 411 . Explosions 6256 | . 482 170 1681 1242 . 2681 Melee 1543 | . . . . 342 916 285 Ramming 2 | . . . . 2 . . Kinetic 3340 | 32 291 52 1558 996 411 . Thermal 1257 | . 112 . 158 987 . . Explosive 3767 | . 370 170 546 . . 2681 Electromagnetic 352 | 15 155 . 182 . . . Impact 1496 | . . . . 342 869 285 Slashing . | . . . . . . . Piercing 47 | . . . . . 47 . Highest Corruption 21 | . . . . . 21 1 Average Corruption 3 | . . . . . 5 1 Corruption Purged 20 | . . . . . 20 . Corruption Blocked . | . . . . . . . Effects 21 | . . . . . 14 7 Message Errors 8 | . . . . . 4 4 Matter Fused 7 | . . . . . 6 1 Heat Flow Errors 1 | . . . . . 1 . Parts Rejected 1 | . . . . . . 1 Data Loss (minor) 2 | . . . . . 1 1 Data Loss (major) 1 | . . . . . 1 . Alerts 1 | . . . . . 1 . Overload Shots . | . . . . . . . Overflow Damage 705 | . 4 . 28 237 216 220 Projectiles . | . . . . . . . Explosions 283 | . 4 . 28 105 . 146 Melee 422 | . . . . 132 216 74 Knockbacks 34 | . . . 9 9 16 . Impact 2 | . . . . . 2 . Kinetic 31 | . . . 9 9 13 . Secondary 1 | . . . . . 1 . Self-Inflicted Damage 463 | . . . 31 289 . 143 Shots 16 | . . . 2 9 . 5 Rammed 1 | . . . . 1 . . Targets Rammed 1 | . . . . 1 . . Kicked . | . . . . . . . Crushed . | . . . . . . . Highest Temperature 446 | . 36 12 . 446 197 187 Average Temperature 91 | . 19 10 . 130 70 65 Received Heat Transfer 1851 | . 96 81 162 822 402 288 Effects 5 | . . . . 5 . . Shutdowns 1 | . . . . 1 . . Energy Bleed 3 | . . . . 3 . . Short Circuit 1 | . . . . 1 . . Siege Activations . | . . . . . . . Robots Corrupted 9 | . . . 1 . 7 1 Combat Hostiles 7 | . . . 1 . 5 1 Parts Fried 13 | . 1 . 1 4 6 1 Impact Corruptions 16 | . . . . 2 11 3 Robots Melted 1 | . . . . 1 . . Combat Hostiles 1 | . . . . 1 . . Parts Melted 2 | . . . 1 . . 1 Heat Transferred 1240 | . 150 . 259 831 . . Parts Sabotaged . | . . . . . . . Parts Stolen . | . . . . . . . Parts Stripped . | . . . . . . . Power Chain Reactions 2 | . 2 . . . . . Alert | -11 -10 -10 -10 -8 -8 -8 ------- Run | Yrd Mat Min Sub Mat Gar Mat Peak Influence 1668 | 5 264 199 . 355 1668 1275 Initial 813 | . 3 30 . 2 63 813 Average 453 | 1 116 59 . 179 852 1059 Maximum Alert Level 5 | . 1 . . 1 5 4 Low Security (%) 49 | 100 86 100 . 52 5 . Level 1 12 | . 13 . . 47 9 . Level 2 5 | . . . . . 17 . Level 3 19 | . . . . . 44 42 Level 4 12 | . . . . . 21 57 Level 5 . | . . . . . 1 . High Security . | . . . . . . . Max Security . | . . . . . . . Squads Dispatched 6 | . . 1 . 1 . 4 Investigation 1 | . . 1 . . . . Extermination . | . . . . . . . Reinforcement 4 | . . . . 1 . 3 Assault 1 | . . . . . . 1 Garrison . | . . . . . . . Intercept . | . . . . . . . Searches Triggered . | . . . . . . . Construction Impeded 2 | . . . . 1 . 1 Haulers Reinforced . | . . . . . . . Active Scanning Responses . | . . . . . . . Cargo Convoy Interrupts . | . . . . . . . Stealth | -11 -10 -10 -10 -8 -8 -8 --------- Run | Yrd Mat Min Sub Mat Gar Mat Distress Signals 3 | . . . . 2 . 1 Communications Jammed 24 | . . . . . . 24 Distress Signals 24 | . . . . . . 24 Times Spotted 125 | . 13 10 17 26 26 33 Peak Tracking Total 12 | . 3 3 3 6 12 5 Tactical Retreats 12 | . . . . 7 3 2 Traps | -11 -10 -10 -10 -8 -8 -8 ------- Run | Yrd Mat Min Sub Mat Gar Mat Traps Triggered 10 | . . . 5 . 5 . Indirectly . | . . . . . . . Trap Hack Attempts . | . . . . . . . Triggered . | . . . . . . . Disarmed . | . . . . . . . Reprogrammed . | . . . . . . . Reused . | . . . . . . . Traps Extracted . | . . . . . . . Installed . | . . . . . . . Triggered . | . . . . . . . Machines | -11 -10 -10 -10 -8 -8 -8 ---------- Run | Yrd Mat Min Sub Mat Gar Mat Machines Disabled 18 | . . . . 7 5 6 Max in Single Turn 3 | . . . . 3 1 2 Garrison Relay 5 | . . . . . 5 . Machines Repaired . | . . . . . . . Machines Dismantled . | . . . . . . . Machines Sabotaged . | . . . . . . . Overloaded Fab Kills . | . . . . . . . Hacking | -11 -10 -10 -10 -8 -8 -8 --------- Run | Yrd Mat Min Sub Mat Gar Mat Machines Accessed 18 | . 6 1 1 5 3 2 Terminals 14 | . 6 . . 4 3 1 Fabricators . | . . . . . . . Repair Stations . | . . . . . . . Recycling Units . | . . . . . . . Scanalyzers 1 | . . . . . . 1 Garrison Access 1 | . . . . 1 . . Total Hacks 58 | . 28 1 5 16 4 4 Successful 37 | . 17 1 5 9 3 2 Failed 21 | . 11 . . 7 1 2 Catastrophic 3 | . . . . 1 1 1 Database Lockouts . | . . . . . . . Manual 27 | . 19 . . 7 . 1 Terminals 49 | . 28 . . 15 4 2 Fabricators . | . . . . . . . Repair Stations . | . . . . . . . Recycling Units . | . . . . . . . Scanalyzers 2 | . . . . . . 2 Garrison Access 1 | . . . . 1 . . Terminal Hacks 29 | . 13 1 5 6 3 1 Record 5 | . . . 5 . . . Part Schematic 2 | . 2 . . . . . Robot Analysis 5 | . 5 . . . . . Prototype ID Bank 4 | . 3 . . 1 . . Open Door 2 | . . 1 . . 1 . Branch Access Points 2 | . 1 . . . . 1 Emergency Access Points 1 | . . . . . 1 . Alert Level 3 | . . . . 3 . . Unreport Threat 2 | . . . . 2 . . Locate Traps 1 | . 1 . . . . . Dispatch Records 1 | . 1 . . . . . Security Stations 1 | . . . . . 1 . Fabricator Hacks . | . . . . . . . Repair Station Hacks . | . . . . . . . Recycling Unit Hacks . | . . . . . . . Scanalyzer 1 | . . . . . . 1 Insert Component 1 | . . . . . . 1 Garrison Access Hacks 1 | . . . . 1 . . Unlock Access 1 | . . . . 1 . . Unauthorized Hacks 6 | . 4 . . 2 . . Terminals 6 | . 4 . . 2 . . Track 1 | . 1 . . . . . Assimilate 1 | . 1 . . . . . Botnet 4 | . 2 . . 2 . . Fabricators . | . . . . . . . Repair Stations . | . . . . . . . Recycling Units . | . . . . . . . Scanalyzers . | . . . . . . . Garrison Access . | . . . . . . . Data Cores Recovered 2 | . 2 . . . . . Used 1 | . 1 . . . . . Hacking Detections 13 | . 6 . . 4 1 2 Full Trace Events 1 | . 1 . . . . . Feedback Events . | . . . . . . . Feedback Blocked . | . . . . . . . Robot Schematics Acquired . | . . . . . . . Robots Built . | . . . . . . . Authchips . | . . . . . . . Time . | . . . . . . . Total Robot Build Rating . | . . . . . . . Part Schematics Acquired 2 | . 2 . . . . . Parts Built . | . . . . . . . Authchips . | . . . . . . . Time . | . . . . . . . Total Part Build Rating . | . . . . . . . Parts Repaired . | . . . . . . . Time . | . . . . . . . Parts Recycled . | . . . . . . . Recycled Matter . | . . . . . . . Retrieved Matter . | . . . . . . . Retrieved Components . | . . . . . . . Parts Scanalyzed . | . . . . . . . Part Schematics Acquired . | . . . . . . . Parts Damaged . | . . . . . . . Bothacking | -11 -10 -10 -10 -8 -8 -8 ------------ Run | Yrd Mat Min Sub Mat Gar Mat Used RIF Installer 2 | . . . . . 2 . Zone Cloak 1 | . . . . . 1 . Robots Hacked 1 | . . . . . . 1 Non-combat . | . . . . . . . Combat 1 | . . . . . . 1 Robot Hacks Applied 1 | . . . . . . 1 formatsys_high 1 | . . . . . . 1 Relay Couplers Released 17 | . . . . . 17 . Machine Destruction 17 | . . . . . 17 . Attached 1 | . . . . . . 1 Fabnet Peak Effective % . | . . . . . . . Robots Rewired . | . . . . . . . Allies Hacked . | . . . . . . . Hacks Repelled . | . . . . . . . Allies | -11 -10 -10 -10 -8 -8 -8 -------- Run | Yrd Mat Min Sub Mat Gar Mat Total Allies 11 | . 1 3 . . 6 1 Largest Group 3 | . 1 3 2 . 1 1 Highest-Rated Group 54 | . 10 54 23 . 20 16 Highest-Rated Ally 31 | . 10 31 14 . 20 16 Total Orders 4 | . . 2 2 . . . STAY 2 | . . 1 1 . . . ROAM 1 | . . . 1 . . . FOLLOW 1 | . . 1 . . . . Ally Attacks 45 | . . 24 . . 13 8 Total Damage 613 | . . 339 . . 182 92 Kills 8 | . . 6 . . 2 . Allies Corrupted . | . . . . . . . Allies Melted . | . . . . . . . Intel | -11 -10 -10 -10 -8 -8 -8 ------- Run | Yrd Mat Min Sub Mat Gar Mat Robot Analysis Total 5 | . 5 . . . . . Derelict Logs Recovered 2 | . . 1 1 . . . Drone Launches . | . . . . . . . Drone Recoveries . | . . . . . . . Exploration | -11 -10 -10 -10 -8 -8 -8 ------------- Run | Yrd Mat Min Sub Mat Gar Mat Turns Passed 11977 | 90 1313 1927 4155 1041 2734 717 Spaces Moved 4828 | 47 609 753 1641 441 1101 236 Core 6 | 6 . . . . . . Treads 4822 | 41 609 753 1641 441 1101 236 Legs . | . . . . . . . Wheels . | . . . . . . . Hover . | . . . . . . . Flight . | . . . . . . . Fastest Speed 50 | 50 160 240 240 160 163 240 Average Speed 223 | 153 187 240 240 196 218 247 Slowest Speed 320 | 160 240 240 240 320 255 320 Overloaded Moves . | . . . . . . . Propulsion Burnouts . | . . . . . . . Robots Hopped . | . . . . . . . Cave-ins Triggered . | . . . . . . . Exploration Rate (%) 62 | 4 90 100 81 30 99 33 Regions Visited 6 Branch Regions 2 Pre-discovered Areas . | . . . . . . . Known Exits Taken 2 | . 1 . . 1 . . Unknown Exits Taken 3 | 1 . 1 1 . . . Scrap Searched 7 | . . 1 6 . . . Spaces Dug 53 | . . . 17 . 11 25 Terrain Destroyed 783 | . 38 19 339 214 11 162 Melee 12 | . . . . . 11 1 Projectile 2 | . . . 2 . . . AOE 769 | . 38 19 337 214 . 161 Terrain Rammed . | . . . . . . . Walls Destroyed . | . . . . . . . Machines Disabled . | . . . . . . . Actions | -11 -10 -10 -10 -8 -8 -8 --------- Run | Yrd Mat Min Sub Mat Gar Mat Total 5595 | 56 720 869 1751 545 1327 327 Wait 239 | . 40 91 . 11 62 35 Move 4822 | 46 608 752 1640 441 1099 236 Hop . | . . . . . . . Pick Up 72 | . 19 8 10 14 16 5 Fast Attach 16 | 7 . 2 . 2 5 . Attach 33 | . 1 1 6 13 6 6 Detach 4 | . . . . 1 . 3 Swap 46 | . 5 1 12 12 11 5 Drop 44 | . 4 8 5 7 16 4 Fire 209 | 3 43 6 76 35 24 22 Melee 88 | . . . . 8 69 11 Ram . | . . . . . . . Kick . | . . . . . . . Crush 1 | . . . . 1 . . Escape Stasis 6 | . . . . . 6 . Rewire 15 | . . . 2 . 13 . Trap . | . . . . . . . Miscellaneous . | . . . . . . . Route ------- -11/Scrapyard -10/Materials (discovered 5 exits: [*Mat x3] / *Min x2) -10/Mines (discovered 3 exits: [*Mat x2] / *Sub) -10/Subcaves -8/Materials (discovered 3 exits: *Fac x2 / Gar) -8/Garrison (discovered 3 exits: *Mat x3) -8/Materials History --------- Turn | Location | Event 24 | -11/Scrapyard | Discovered new exit (range 15) 91 | -11/Scrapyard | Entered Materials 179 | -10/Materials | Discovered new exit (range 10) 266 | -10/Materials | Discovered new exit (range 9) 304 | -10/Materials | Build established: Mutant 418 | -10/Materials | Discovered new exit (range 9) 645 | -10/Materials | Discovered new exit (range 8) 1145 | -10/Materials | Discovered new exit (range 16) 1187 | -10/Materials | Identified exit to Mines 1404 | -10/Materials | Entered Mines 1404 | -10/Mines | Accompanied by 1 ally 1758 | -10/Mines | Received a Mining Laser from a helpful Derelict 1840 | -10/Mines | Found a damaged Exp. Sensor Array with a note attached 1845 | -10/Mines | Found Prototype Device 1957 | -10/Mines | Discovered new exit (range 8) 1984 | -10/Mines | Learned Materials stockpile data 2201 | -10/Mines | Discovered new exit (range 12) 2566 | -10/Mines | Met a Derelict shopkeep closing up shop 3308 | -10/Mines | Discovered new exit (range 6) 3331 | -10/Mines | Entered Subcaves 3331 | -10/Subcaves | Accompanied by 2 allies 3469 | -10/Subcaves | Shifting Twisted Machinery released Battle Cannon 3580 | -10/Subcaves | Learned location of 1 exit from Materials 3599 | -10/Subcaves | Ambushed by Subdweller buried in earth 3638 | -10/Subcaves | Shifting Twisted Machinery released Flamer 3658 | -10/Subcaves | Lost 3 parts (1p1u1w) 3855 | -10/Subcaves | Visited Clippyterm 3862 | -10/Subcaves | Learned 40 Factory zone layouts 3862 | -10/Subcaves | Learned Factory garrison access intel 3916 | -10/Subcaves | Disturbed a concealed Subdweller 3930 | -10/Subcaves | Core integrity fell below 50% 4139 | -10/Subcaves | A swath of the cavern ceiling suddenly collapsed 4163 | -10/Subcaves | Shifting Twisted Machinery released Battle Cannon 4168 | -10/Subcaves | Shifting Twisted Machinery released Mak. Laser 4404 | -10/Subcaves | Disturbed a concealed Subdweller 4469 | -10/Subcaves | Ambushed by Subdweller buried in earth 5615 | -10/Subcaves | A swath of the cavern ceiling suddenly collapsed 5999 | -10/Subcaves | Ambushed by angry Subdweller bent on revenge 6380 | -10/Subcaves | Discovered new exit (range 6) 6571 | -10/Subcaves | Shifting Twisted Machinery released Battle Cannon 6577 | -10/Subcaves | Shifting Twisted Machinery released Mak. Light Armor Plating 6771 | -10/Subcaves | Core integrity fell below 20% 7486 | -10/Subcaves | Entered Materials 7486 | -8/Materials | Evolved 4 slots: Power x1, Propulsion x1, Utility x2 7487 | -8/Materials | Identified exit to Factory 7620 | -8/Materials | Lost 3 parts (1n2u) 7879 | -8/Materials | Build established: Scavenger-Mutant 8120 | -8/Materials | Lost 5 parts (1p3n1u) 8240 | -8/Materials | Discovered exit to Factory (range 8) 8371 | -8/Materials | Build established: Mutant 8527 | -8/Materials | Identified exit to Garrison 8527 | -8/Materials | Entered Garrison 8584 | -8/Garrison | Rescued a captive Derelict 8619 | -8/Garrison | Triggered checkpoint 8682 | -8/Garrison | Garrison Relay disabled 8897 | -8/Garrison | Triggered checkpoint 8933 | -8/Garrison | Core integrity fell below 50% 8940 | -8/Garrison | Triggered checkpoint 9187 | -8/Garrison | Discovered new exit (range 10) 9249 | -8/Garrison | Triggered checkpoint 9273 | -8/Garrison | Build established: Scavenger-Mutant 9329 | -8/Garrison | Learned Materials security intel 9383 | -8/Garrison | Garrison Relay disabled 9421 | -8/Garrison | Garrison Relay disabled 9765 | -8/Garrison | Triggered checkpoint 9796 | -8/Garrison | Core integrity fell below 20% 9838 | -8/Garrison | Garrison Relay disabled 9964 | -8/Garrison | Discovered new exit (range 9) 10054 | -8/Garrison | Spotted B-75 Beast 10065 | -8/Garrison | Destroyed B-75 Beast 10076 | -8/Garrison | System corruption reached 10% 10449 | -8/Garrison | Installed Relay Interface Framework 10500 | -8/Garrison | Expanded RIF knowledge: Zone Cloak 10517 | -8/Garrison | Discovered new exit (range 10) 10663 | -8/Garrison | Triggered checkpoint 10721 | -8/Garrison | Garrison Relay disabled 11261 | -8/Garrison | Entered Materials 11281 | -8/Materials | Identified Exp. Sensor Array 11661 | -8/Materials | First assault squad dispatched 11804 | -8/Materials | Build established: Mutant 11978 | -8/Materials | Destroyed by G-47 Trooper with Particle Gun Last Messages --------------- 11854_ G-47 Trooper system corrupted by crushing effect. 11855_ Imp. Shock Absorption System destroyed. 11857_ Destroyed Lgt. Nuclear Core. 11857_ G-47 Trooper system corrupted by crushing effect. 11858_ G-47 Trooper system terminally corrupted. 11861_ R-06 Scavenger collects Corrupted Particle Gun. 11864_ R-06 Scavenger collects Arm. Treads. 11867_ K-01 Serf collects debris. 11874_ K-01 Serf cleans the Terminal. 11890_ Connecting with Terminal... >>Access(Branch) No branch access points found. 11923_ System corrupted: Imp. Medium Treads rejected. 11924_ Acquired Imp. Medium Treads. 11924_ W-25 Informer distress signal jammed. 11928_ ALERT: Hostiles spotted, dispatching reinforcements to Terminal M004. 11940_ W-25 Informer distress signal jammed. 11960_ System corrupted: Component data lost. 11960_ Critical hit (Burn: +37). 11966_ K-01 Serf cleans the Terminal. Map ----- +----------------------------------------------------+ | ?????????????????????????????????????????????????? | | ?????????????????????????????????????????????????? | | ?????????????????????????????????????????????????? | | ?????????????????????????????????????????????????? | | ?????????????????????????????????????????????????? | | ?????????????????????????????????????????????????? | | ?????????????????????????????????????????????????? | | ?????????????????????????????????????????????????? | | ???????????????? ????????????????????????????????? | | ???????????????? ????????????????????????????????? | | ???????????????? ????????????????????????????????? | | ???????????????? ????????????????????????????????? | | ???????????????? ????????????????????????????????? | | ???????????????? ????????????????????????????????? | | ???????????????? ????????????????????????????????? | | ???????????????# #???????????????????????????????? | | ???????????????# #???????????????????????????????? | | ???????????????# #??????######???????????????????? | | ???????????????# #?????##!!!!##??????????????????? | | ???????????????# #?????#! !#??????????????????? | | ???????????????# #?????# #??????????????????? | | ?????########### #?????##### ####???????????????? | | ?????# ##%#?????????# ###+######??????? | | ?????# ##%########### ???? | | ?????# + g T ???? | | ?????# ###########@## ???? | | ?????# #???????? #= #############???? | | ?????# ] #?????? """ ## ####???????????????? | | ?????#! ! #????# """ ## #??????????????????? | | ####?# #????# """ ## #??????????????????? | | ### ##???# ## #??????????????????? | | ## ############## #??????????????????? | | # ] ??# #??????????????????? | | ?# #??????????????????? | | !! ??# #??????????????????? | | # %! ! ]??# #??????????????????? | | #### # != *% ???# #??????????????????? | | ## # % # ?? #??????????????????? | | #### % # # # ??? #??????????????????? | | ## ## #??? #??????????????????? | | # %???? #??????????????????? | | ###### ## ???? #??????????????????? | | ?????#### ### #?# ????? ???????????????????? | | ????????# #??###????????? ???????????????????? | | ????????# #?????????????? ???????????????????? | | ????????# #?????????????? ???????????????????? | | ????????? ?????????????? ???????????????????? | | ????????? ?????????????? ???????????????????? | | ????????? T ????????????? ???????????????????? | | ????????? ? ?????????????????????????????????????? | +----------------------------------------------------+ Best States ------------- Heat Dissipation 64 Energy Generation 25 Energy Capacity 465 Matter Stores 300 Matter Capacity 300 Sight Range 16 Terrain Scan Density 10 Jamming Range 14 Armor Coverage 600 Resistance: TH 15 Resistance: EX 50 Evasion (%) 40 Recoil Reduction 3 Relay Coupler Types 1 Relay Coupler Value 26 Item Schematics ----------------- Hcp. Storage Unit | -10/Materials | Hacked Lgt. Armor Plating | -10/Materials | Hacked Robot Schematics ------------------ None Fabricated ------------ Nothing Alien Tech Used ----------------- None Achievements -------------- Dramatic Entrance Challenges ------------ None Game ------ Seed TransportGaussBeacon Manual? 0 Play Time 01:15:02 Cumulative 16.7 hours Start 2024.08.11 @ 07:50:49 End 2024.08.11 @ 09:05:34 Sessions 1 Manual Loads 0 Difficulty Rogue Special Mode None Game No. 9 Rogue 9 Adventurer 0 Explorer 0 Win Type - Total 0 Types 0/0/0/0/0/0/0/0/0 Lore% 17 Gallery% 27 Achievement% 30 Wizard Run 0 Options --------- Layout 0 ASCII 0 Keyboard 0 Movement Mouse Keybinds 0 Fullscreen 1 Font 24/Smallcaps Map View 183x50 Zoom Use 0% Tactical HUD 1 Map Filters NONE Filters NONE Steam 0 RUN: 8998ea2e-61dc-4ac6-a9b7-9822ba6ff6e1